[Event "Late-Titled-Tuesday-Blitz-April-30-2024"]
[Site "Chess.com"]
[Date "2024.04.30"]
[Round "8"]
[White "IngOscarArdila"]
[Black "DeArron_Fox"]
[Result "0-1"]
[WhiteElo "2329"]
[BlackElo "2509"]
[TimeControl "180+1"]
[EndTime "15:29:00 PDT"]
[Termination "DeArron_Fox won by checkmate"]

1. d4 {[%clk 0:03:00.2]} 1... d5 {[%clk 0:02:59.8]} 2. Nf3 {[%clk 0:03:00.5]}
2... Nf6 {[%clk 0:03:00.2]} 3. e3 {[%clk 0:03:00.8]} 3... c5 {[%clk 0:03:00.6]}
4. c3 {[%clk 0:03:00.7]} 4... Nc6 {[%clk 0:03:01]} 5. Nbd2 {[%clk 0:03:00.6]}
5... e6 {[%clk 0:03:00.4]} 6. Bb5 {[%clk 0:03:00.1]} 6... Bd7 {[%clk 0:02:52.5]}
7. O-O {[%clk 0:02:57.8]} 7... Bd6 {[%clk 0:02:52.1]} 8. Re1 {[%clk 0:02:55]}
8... O-O {[%clk 0:02:52.2]} 9. dxc5 {[%clk 0:02:48]} 9... Bxc5 {[%clk
0:02:51.9]} 10. e4 {[%clk 0:02:48.4]} 10... Bxf2+ {[%clk 0:02:22.4]} 11. Kxf2
{[%clk 0:02:46.9]} 11... Qb6+ {[%clk 0:02:22.9]} 12. Kf1 {[%clk 0:02:36.8]}
12... Qxb5+ {[%clk 0:01:51]} 13. Qe2 {[%clk 0:02:36.3]} 13... Qb6 {[%clk
0:01:39.9]} 14. Qf2 {[%clk 0:02:18.9]} 14... Qxf2+ {[%clk 0:01:37]} 15. Kxf2
{[%clk 0:02:19.2]} 15... Rfe8 {[%clk 0:01:37.4]} 16. e5 {[%clk 0:02:17]} 16...
Ng4+ {[%clk 0:01:36.3]} 17. Kg3 {[%clk 0:02:15.9]} 17... Nh6 {[%clk 0:01:36.6]}
18. Kf4 {[%clk 0:02:10.4]} 18... f6 {[%clk 0:01:35.6]} 19. Nb3 {[%clk
0:02:04.9]} 19... Nf7 {[%clk 0:01:35.4]} 20. exf6 {[%clk 0:01:57.9]} 20... gxf6
{[%clk 0:01:36.3]} 21. Nc5 {[%clk 0:01:51]} 21... e5+ {[%clk 0:01:35.6]} 22. Kg3
{[%clk 0:01:50.6]} 22... Bc8 {[%clk 0:01:32.3]} 23. Bd2 {[%clk 0:01:44.8]} 23...
b6 {[%clk 0:01:32.4]} 24. Nb3 {[%clk 0:01:42.2]} 24... Nd6 {[%clk 0:01:32.9]}
25. Kf2 {[%clk 0:01:24.8]} 25... a5 {[%clk 0:01:17.2]} 26. Kg1 {[%clk
0:01:19.8]} 26... a4 {[%clk 0:01:16.9]} 27. Nc1 {[%clk 0:01:20.1]} 27... Nc4
{[%clk 0:01:13.9]} 28. b3 {[%clk 0:01:16.8]} 28... axb3 {[%clk 0:01:13.2]} 29.
Nxb3 {[%clk 0:01:17]} 29... Bf5 {[%clk 0:01:10.2]} 30. Bh6 {[%clk 0:01:16.3]}
30... Ra3 {[%clk 0:00:56.9]} 31. Nh4 {[%clk 0:01:13.2]} 31... Bc2 {[%clk
0:00:56.5]} 32. Rf1 {[%clk 0:00:57.4]} 32... Rea8 {[%clk 0:00:45.8]} 33. Nc1
{[%clk 0:00:56.6]} 33... Rxc3 {[%clk 0:00:36.8]} 34. Rxf6 {[%clk 0:00:53.4]}
34... Nd4 {[%clk 0:00:37.3]} 35. Nb3 {[%clk 0:00:35.1]} 35... Rxb3 {[%clk
0:00:24.6]} 36. Raf1 {[%clk 0:00:34]} 36... Rb1 {[%clk 0:00:24.9]} 37. Rxb1
{[%clk 0:00:18.1]} 37... Bxb1 {[%clk 0:00:25.8]} 38. a4 {[%clk 0:00:18.6]} 38...
Bc2 {[%clk 0:00:12.1]} 39. g4 {[%clk 0:00:18.8]} 39... Bxa4 {[%clk 0:00:10.7]}
40. g5 {[%clk 0:00:19.2]} 40... b5 {[%clk 0:00:09.9]} 41. Ng2 {[%clk 0:00:18.2]}
41... b4 {[%clk 0:00:08.8]} 42. h4 {[%clk 0:00:18.7]} 42... b3 {[%clk
0:00:08.9]} 43. h5 {[%clk 0:00:19.3]} 43... b2 {[%clk 0:00:09.4]} 44. g6 {[%clk
0:00:19.8]} 44... b1=Q+ {[%clk 0:00:09.1]} 45. Kh2 {[%clk 0:00:20.4]} 45... hxg6
{[%clk 0:00:09.1]} 46. hxg6 {[%clk 0:00:20.7]} 46... Qe4 {[%clk 0:00:08.2]} 47.
g7 {[%clk 0:00:18.9]} 47... Nf3+ {[%clk 0:00:08.6]} 48. Kg3 {[%clk 0:00:18.7]}
48... Kh7 {[%clk 0:00:03.6]} 49. Rf8 {[%clk 0:00:16.9]} 49... Qg6+ {[%clk
0:00:04.1]} 50. Kf2 {[%clk 0:00:16.6]} 50... Nfd2 {[%clk 0:00:03.3]} 51. Rh8+
{[%clk 0:00:13.8]} 51... Rxh8 {[%clk 0:00:02.6]} 52. gxh8=Q+ {[%clk 0:00:14.1]}
52... Kxh8 {[%clk 0:00:03.5]} 53. Bxd2 {[%clk 0:00:13.8]} 53... Nxd2 {[%clk
0:00:03.6]} 54. Ne3 {[%clk 0:00:14.3]} 54... Ne4+ {[%clk 0:00:04.5]} 55. Ke2
{[%clk 0:00:14.6]} 55... d4 {[%clk 0:00:05.4]} 56. Nd5 {[%clk 0:00:14.2]} 56...
Bb5+ {[%clk 0:00:06.3]} 57. Kd1 {[%clk 0:00:13.8]} 57... Qc6 {[%clk 0:00:07.2]}
58. Ne7 {[%clk 0:00:13.4]} 58... Nc3+ {[%clk 0:00:08.1]} 59. Ke1 {[%clk
0:00:13.4]} 59... Qg2 {[%clk 0:00:09]} 60. Ng6+ {[%clk 0:00:12.5]} 60... Qxg6
{[%clk 0:00:09.3]} 61. Kd2 {[%clk 0:00:12.6]} 61... Qd3+ {[%clk 0:00:10.2]} 62.
Kc1 {[%clk 0:00:12.5]} 62... Qd1+ {[%clk 0:00:10.6]} 63. Kb2 {[%clk 0:00:12.8]}
63... Qb1+ {[%clk 0:00:11.5]} 64. Ka3 {[%clk 0:00:13]} 64... Qa2+ {[%clk
0:00:10.1]} 65. Kb4 {[%clk 0:00:13.1]} 65... Qc4+ {[%clk 0:00:11]} 66. Ka5
{[%clk 0:00:13]} 66... Qa4+ {[%clk 0:00:11.2]} 67. Kb6 {[%clk 0:00:13.2]} 67...
Qa6+ {[%clk 0:00:11.9]} 68. Kc5 {[%clk 0:00:13.5]} 68... Qc6+ {[%clk 0:00:12.5]}
69. Kb4 {[%clk 0:00:13.9]} 69... Nd5+ {[%clk 0:00:13.1]} 70. Ka5 {[%clk
0:00:14.1]} 70... Qa6# {[%clk 0:00:13.4]} 0-1

[Event "Late-Titled-Tuesday-Blitz-April-30-2024"]
[Site "Chess.com"]
[Date "2024.04.30"]
[Round "8"]
[White "Yerkinio"]
[Black "alexrustemov"]
[Result "0-1"]
[WhiteElo "2659"]
[BlackElo "2888"]
[TimeControl "180+1"]
[EndTime "15:29:01 PDT"]
[Termination "alexrustemov won on time"]

1. e4 {[%clk 0:02:56.8]} 1... e6 {[%clk 0:02:59.5]} 2. d4 {[%clk 0:02:56.4]}
2... d5 {[%clk 0:02:59]} 3. Nc3 {[%clk 0:02:56.9]} 3... dxe4 {[%clk 0:02:58.5]}
4. Nxe4 {[%clk 0:02:56.7]} 4... Bd7 {[%clk 0:02:58.9]} 5. Nf3 {[%clk 0:02:55.6]}
5... Bc6 {[%clk 0:02:59.2]} 6. Bd3 {[%clk 0:02:56.2]} 6... Nd7 {[%clk
0:02:59.6]} 7. O-O {[%clk 0:02:53.5]} 7... Ngf6 {[%clk 0:03:00]} 8. Ng3 {[%clk
0:02:54.1]} 8... Be7 {[%clk 0:03:00]} 9. c3 {[%clk 0:02:48.9]} 9... O-O {[%clk
0:02:59.8]} 10. Re1 {[%clk 0:02:48.4]} 10... b6 {[%clk 0:03:00.2]} 11. a4 {[%clk
0:02:43.2]} 11... Bb7 {[%clk 0:02:58.9]} 12. a5 {[%clk 0:02:32.6]} 12... bxa5
{[%clk 0:02:59.8]} 13. Rxa5 {[%clk 0:02:29.1]} 13... c5 {[%clk 0:02:59.8]} 14.
Ra1 {[%clk 0:02:21.8]} 14... Bxf3 {[%clk 0:02:56.1]} 15. Qxf3 {[%clk 0:02:22.7]}
15... cxd4 {[%clk 0:02:56.7]} 16. cxd4 {[%clk 0:02:21.8]} 16... a5 {[%clk
0:02:46.2]} 17. Bd2 {[%clk 0:02:06.4]} 17... Bb4 {[%clk 0:02:37.5]} 18. Bc3
{[%clk 0:01:55.1]} 18... Nd5 {[%clk 0:02:32]} 19. Ne4 {[%clk 0:01:47.9]} 19...
N7f6 {[%clk 0:02:29.5]} 20. Nxf6+ {[%clk 0:01:26.9]} 20... Nxf6 {[%clk
0:02:28.7]} 21. g3 {[%clk 0:01:18.2]} 21... Rb8 {[%clk 0:02:27.1]} 22. h4 {[%clk
0:01:11.6]} 22... h6 {[%clk 0:02:25.7]} 23. Bc4 {[%clk 0:01:06.4]} 23... Qc7
{[%clk 0:02:17]} 24. Ba2 {[%clk 0:01:03.6]} 24... Rfc8 {[%clk 0:02:12.2]} 25.
Rac1 {[%clk 0:01:03.6]} 25... Qd6 {[%clk 0:02:10.8]} 26. Red1 {[%clk 0:00:55.4]}
26... Rd8 {[%clk 0:02:08.5]} 27. Kg2 {[%clk 0:00:52.8]} 27... a4 {[%clk
0:02:05.6]} 28. Rd2 {[%clk 0:00:46.7]} 28... a3 {[%clk 0:01:48.1]} 29. bxa3
{[%clk 0:00:40.3]} 29... Bxa3 {[%clk 0:01:48.3]} 30. Rcd1 {[%clk 0:00:36.3]}
30... Bb4 {[%clk 0:01:46.1]} 31. Bxb4 {[%clk 0:00:35.2]} 31... Rxb4 {[%clk
0:01:46.6]} 32. d5 {[%clk 0:00:35.1]} 32... e5 {[%clk 0:01:46.6]} 33. Rc2 {[%clk
0:00:32.2]} 33... e4 {[%clk 0:01:40.1]} 34. Qe2 {[%clk 0:00:24.7]} 34... Qe5
{[%clk 0:01:37.7]} 35. Rcd2 {[%clk 0:00:18]} 35... Rb6 {[%clk 0:01:37.2]} 36.
Qe3 {[%clk 0:00:16]} 36... Rbd6 {[%clk 0:01:37.2]} 37. Qd4 {[%clk 0:00:15.5]}
37... Re8 {[%clk 0:01:29.8]} 38. Qxe5 {[%clk 0:00:15.5]} 38... Rxe5 {[%clk
0:01:30.5]} 39. Rd4 {[%clk 0:00:13.7]} 39... g6 {[%clk 0:01:24.5]} 40. Kf1
{[%clk 0:00:13.1]} 40... Kg7 {[%clk 0:01:23.3]} 41. Ke2 {[%clk 0:00:13]} 41...
Ng4 {[%clk 0:01:19.1]} 42. Bb3 {[%clk 0:00:12]} 42... f5 {[%clk 0:01:18.7]} 43.
Ba4 {[%clk 0:00:11.7]} 43... g5 {[%clk 0:01:09.3]} 44. hxg5 {[%clk 0:00:12.6]}
44... hxg5 {[%clk 0:01:10]} 45. Bc6 {[%clk 0:00:13.3]} 45... Nf6 {[%clk
0:01:09.1]} 46. R1d2 {[%clk 0:00:10.8]} 46... Kg6 {[%clk 0:01:09.3]} 47. Ke3
{[%clk 0:00:10]} 47... Ng4+ {[%clk 0:01:06]} 48. Ke2 {[%clk 0:00:10.1]} 48...
Re7 {[%clk 0:01:01.5]} 49. Rd1 {[%clk 0:00:06.6]} 49... Nf6 {[%clk 0:00:58.2]}
50. Rh1 {[%clk 0:00:04.8]} 50... Ra7 {[%clk 0:00:55.1]} 51. Rhd1 {[%clk
0:00:04.1]} 51... Ra5 {[%clk 0:00:47.8]} 52. R1d2 {[%clk 0:00:04.2]} 52... Rc5
{[%clk 0:00:47.6]} 53. Rd1 {[%clk 0:00:04.5]} 53... Ng4 {[%clk 0:00:47.3]} 54.
R1d2 {[%clk 0:00:03.7]} 54... Ne5 {[%clk 0:00:47.3]} 55. Rd1 {[%clk 0:00:02.6]}
55... Nf3 {[%clk 0:00:45.7]} 56. Rb4 {[%clk 0:00:02.9]} 56... Rc2+ {[%clk
0:00:45.3]} 57. Ke3 {[%clk 0:00:03.5]} 57... Kf6 {[%clk 0:00:39.4]} 58. Rb8
{[%clk 0:00:03.3]} 58... Rc3+ {[%clk 0:00:34.6]} 59. Ke2 {[%clk 0:00:03.6]}
59... Rc2+ {[%clk 0:00:27.7]} 60. Ke3 {[%clk 0:00:03.6]} 60... Ne5 {[%clk
0:00:28.3]} 61. Rf8+ {[%clk 0:00:03]} 61... Kg6 {[%clk 0:00:28.5]} 62. f4 {[%clk
0:00:01.8]} 62... Ng4+ {[%clk 0:00:23.7]} 63. Kd4 {[%clk 0:00:01.8]} 63... Rcxc6
{[%clk 0:00:24.3]} 0-1

[Event "Late-Titled-Tuesday-Blitz-April-30-2024"]
[Site "Chess.com"]
[Date "2024.04.30"]
[Round "8"]
[White "ImportedItalianMaple"]
[Black "Casablanca"]
[Result "0-1"]
[WhiteElo "2458"]
[BlackElo "2635"]
[TimeControl "180+1"]
[EndTime "15:29:01 PDT"]
[Termination "Casablanca won on time"]

1. e4 {[%clk 0:02:32.7]} 1... c5 {[%clk 0:03:00.1]} 2. Nf3 {[%clk 0:02:32.9]}
2... d6 {[%clk 0:03:00.7]} 3. Bb5+ {[%clk 0:02:32.8]} 3... Bd7 {[%clk
0:03:00.6]} 4. Bxd7+ {[%clk 0:02:33.1]} 4... Qxd7 {[%clk 0:03:01.5]} 5. O-O
{[%clk 0:02:32.2]} 5... Nf6 {[%clk 0:03:02.1]} 6. e5 {[%clk 0:02:32.1]} 6...
dxe5 {[%clk 0:03:02.4]} 7. Nxe5 {[%clk 0:02:33]} 7... Qc7 {[%clk 0:03:03.1]} 8.
Re1 {[%clk 0:02:32.8]} 8... Nbd7 {[%clk 0:03:03.3]} 9. Qe2 {[%clk 0:02:31]} 9...
Nxe5 {[%clk 0:03:03]} 10. Qxe5 {[%clk 0:02:31.3]} 10... Qxe5 {[%clk 0:03:03.9]}
11. Rxe5 {[%clk 0:02:31.9]} 11... e6 {[%clk 0:03:04.8]} 12. d3 {[%clk
0:02:28.2]} 12... Bd6 {[%clk 0:03:05.1]} 13. Re1 {[%clk 0:02:28.4]} 13... Kd7
{[%clk 0:02:58.8]} 14. Nd2 {[%clk 0:02:28.8]} 14... b5 {[%clk 0:02:56.1]} 15.
Ne4 {[%clk 0:02:26.1]} 15... Nd5 {[%clk 0:02:54.3]} 16. b3 {[%clk 0:02:20.7]}
16... f6 {[%clk 0:02:44.6]} 17. c4 {[%clk 0:02:18]} 17... Nb4 {[%clk 0:02:42.5]}
18. Be3 {[%clk 0:02:12.3]} 18... Nc2 {[%clk 0:02:39.9]} 19. Bxc5 {[%clk
0:02:05]} 19... Bxc5 {[%clk 0:02:23.8]} 20. Nxc5+ {[%clk 0:02:05.9]} 20... Kc6
{[%clk 0:02:24.2]} 21. Nxe6 {[%clk 0:02:04.8]} 21... Nxe1 {[%clk 0:02:11.2]} 22.
Rxe1 {[%clk 0:02:04.3]} 22... bxc4 {[%clk 0:02:11.4]} 23. bxc4 {[%clk
0:02:01.8]} 23... Rhe8 {[%clk 0:02:07.6]} 24. d4 {[%clk 0:02:01.9]} 24... Rab8
{[%clk 0:02:06.7]} 25. d5+ {[%clk 0:02:01.8]} 25... Kd6 {[%clk 0:02:07.3]} 26.
Rd1 {[%clk 0:01:58]} 26... Rb2 {[%clk 0:01:50.3]} 27. c5+ {[%clk 0:01:57.2]}
27... Kd7 {[%clk 0:01:50.8]} 28. Nxg7 {[%clk 0:01:29.1]} 28... Ree2 {[%clk
0:01:47.3]} 29. c6+ {[%clk 0:01:23.9]} 29... Kd6 {[%clk 0:01:40.2]} 30. Nf5+
{[%clk 0:01:03.3]} 30... Kc7 {[%clk 0:01:40.6]} 31. d6+ {[%clk 0:01:02.1]} 31...
Kxc6 {[%clk 0:01:41.5]} 32. Nd4+ {[%clk 0:01:02.3]} 32... Kd7 {[%clk 0:01:39.8]}
33. Nxe2 {[%clk 0:01:02.3]} 33... Rxe2 {[%clk 0:01:40.7]} 34. Ra1 {[%clk
0:00:56]} 34... a5 {[%clk 0:01:35.9]} 35. a4 {[%clk 0:00:50.2]} 35... Kxd6
{[%clk 0:01:33.1]} 36. Kf1 {[%clk 0:00:49]} 36... Rb2 {[%clk 0:01:30.3]} 37.
Rd1+ {[%clk 0:00:43.2]} 37... Kc5 {[%clk 0:01:30.4]} 38. Rd7 {[%clk 0:00:42.1]}
38... Rb4 {[%clk 0:00:54.1]} 39. Rxh7 {[%clk 0:00:39.4]} 39... Rxa4 {[%clk
0:00:54.7]} 40. h4 {[%clk 0:00:39.3]} 40... Ra1+ {[%clk 0:00:52.6]} 41. Ke2
{[%clk 0:00:39.7]} 41... a4 {[%clk 0:00:53.5]} 42. Ra7 {[%clk 0:00:27.9]} 42...
Kb6 {[%clk 0:00:51.6]} 43. Rf7 {[%clk 0:00:28]} 43... a3 {[%clk 0:00:48.9]} 44.
Rxf6+ {[%clk 0:00:28.4]} 44... Kb5 {[%clk 0:00:48.5]} 45. Rf8 {[%clk 0:00:24.5]}
45... Rh1 {[%clk 0:00:44.8]} 46. Ra8 {[%clk 0:00:22.4]} 46... Kb4 {[%clk
0:00:45.1]} 47. g3 {[%clk 0:00:20.2]} 47... Kb3 {[%clk 0:00:43.6]} 48. f4 {[%clk
0:00:20.7]} 48... a2 {[%clk 0:00:41.6]} 49. Kf3 {[%clk 0:00:21]} 49... a1=Q
{[%clk 0:00:37.6]} 50. Rxa1 {[%clk 0:00:20.3]} 50... Rxa1 {[%clk 0:00:38.5]} 51.
h5 {[%clk 0:00:20]} 51... Kc4 {[%clk 0:00:34.8]} 52. f5 {[%clk 0:00:16]} 52...
Kd5 {[%clk 0:00:33.8]} 53. Kf4 {[%clk 0:00:16.7]} 53... Kd6 {[%clk 0:00:31.6]}
54. Kg5 {[%clk 0:00:14.1]} 54... Ke7 {[%clk 0:00:23.8]} 55. g4 {[%clk
0:00:10.3]} 55... Kf7 {[%clk 0:00:23.4]} 56. Kh6 {[%clk 0:00:10.2]} 56... Ra6+
{[%clk 0:00:19.9]} 57. Kg5 {[%clk 0:00:09.6]} 57... Kg7 {[%clk 0:00:17.1]} 58.
Kh4 {[%clk 0:00:07.9]} 58... Ra4 {[%clk 0:00:12.8]} 59. Kg5 {[%clk 0:00:08.2]}
59... Ra6 {[%clk 0:00:09.8]} 60. Kh4 {[%clk 0:00:08.7]} 60... Kf6 {[%clk
0:00:09.9]} 61. h6 {[%clk 0:00:08.6]} 61... Ra1 {[%clk 0:00:09.2]} 62. g5+
{[%clk 0:00:02.7]} 62... Kxf5 {[%clk 0:00:09.5]} 0-1

[Event "Late-Titled-Tuesday-Blitz-April-30-2024"]
[Site "Chess.com"]
[Date "2024.04.30"]
[Round "8"]
[White "Andrii_Prydun"]
[Black "VD_coach"]
[Result "0-1"]
[WhiteElo "2377"]
[BlackElo "2537"]
[TimeControl "180+1"]
[EndTime "15:29:02 PDT"]
[Termination "VD_coach won by resignation"]

1. e4 {[%clk 0:03:00.9]} 1... c5 {[%clk 0:02:59.8]} 2. Nf3 {[%clk 0:02:59.7]}
2... d6 {[%clk 0:02:59.5]} 3. Bb5+ {[%clk 0:02:57.8]} 3... Bd7 {[%clk
0:02:59.1]} 4. Qe2 {[%clk 0:02:57.7]} 4... Bxb5 {[%clk 0:02:58.3]} 5. Qxb5+
{[%clk 0:02:57.1]} 5... Qd7 {[%clk 0:02:59.2]} 6. a4 {[%clk 0:02:55.6]} 6... Nf6
{[%clk 0:02:55.6]} 7. e5 {[%clk 0:02:54.1]} 7... a6 {[%clk 0:02:24.7]} 8. Qxd7+
{[%clk 0:02:27.3]} 8... Nfxd7 {[%clk 0:02:25.6]} 9. exd6 {[%clk 0:02:27.7]} 9...
e6 {[%clk 0:02:20.5]} 10. b3 {[%clk 0:02:20]} 10... Bxd6 {[%clk 0:02:19.3]} 11.
Bb2 {[%clk 0:02:20.9]} 11... f6 {[%clk 0:01:53.5]} 12. Na3 {[%clk 0:02:20.5]}
12... Nc6 {[%clk 0:01:50.9]} 13. Nc4 {[%clk 0:02:19.9]} 13... Bc7 {[%clk
0:01:51.1]} 14. d4 {[%clk 0:02:14.6]} 14... cxd4 {[%clk 0:01:49.6]} 15. Nxd4
{[%clk 0:02:15.5]} 15... Nxd4 {[%clk 0:01:48.4]} 16. Bxd4 {[%clk 0:02:16.4]}
16... e5 {[%clk 0:01:48.8]} 17. Be3 {[%clk 0:02:09.4]} 17... Ke7 {[%clk
0:01:33]} 18. O-O {[%clk 0:01:33.3]} 18... b5 {[%clk 0:01:30.5]} 19. axb5 {[%clk
0:01:25.9]} 19... axb5 {[%clk 0:01:30.1]} 20. Na3 {[%clk 0:01:25.7]} 20... Rhb8
{[%clk 0:01:08.8]} 21. Nxb5 {[%clk 0:01:09.4]} 21... Rxa1 {[%clk 0:01:05.1]} 22.
Nxc7 {[%clk 0:01:09.8]} 22... Rxf1+ {[%clk 0:01:04.1]} 23. Kxf1 {[%clk
0:01:10.7]} 23... Kd6 {[%clk 0:00:52]} 24. Na6 {[%clk 0:01:10.6]} 24... Rb5
{[%clk 0:00:32.1]} 25. b4 {[%clk 0:01:04.9]} 25... Rb7 {[%clk 0:00:22.1]} 26. c4
{[%clk 0:01:04.4]} 26... Nb8 {[%clk 0:00:18.8]} 27. Nxb8 {[%clk 0:00:15]} 27...
Rxb8 {[%clk 0:00:19.7]} 28. b5 {[%clk 0:00:14.3]} 28... f5 {[%clk 0:00:17.6]}
29. f3 {[%clk 0:00:13.7]} 29... f4 {[%clk 0:00:15.6]} 30. Bf2 {[%clk 0:00:13.3]}
30... Ra8 {[%clk 0:00:15.8]} 31. Ke2 {[%clk 0:00:02.3]} 31... Ra2+ {[%clk
0:00:15.4]} 32. Ke1 {[%clk 0:00:02.7]} 32... Rc2 {[%clk 0:00:15.3]} 33. c5+
{[%clk 0:00:02.5]} 33... Kd5 {[%clk 0:00:15.6]} 34. c6 {[%clk 0:00:02.3]} 34...
Kd6 {[%clk 0:00:14.1]} 35. Bg1 {[%clk 0:00:01.7]} 35... Rc1+ {[%clk 0:00:13.4]}
36. Kf2 {[%clk 0:00:02]} 36... Rb1 {[%clk 0:00:13.7]} 37. g3 {[%clk 0:00:01.2]}
37... Rxb5 {[%clk 0:00:12.5]} 38. gxf4 {[%clk 0:00:01.5]} 38... exf4 {[%clk
0:00:13.1]} 39. Kg2 {[%clk 0:00:01.9]} 39... Rb1 {[%clk 0:00:12.1]} 40. Bd4
{[%clk 0:00:01.9]} 40... g6 {[%clk 0:00:11]} 41. Bf6 {[%clk 0:00:02]} 41... Kxc6
{[%clk 0:00:10.6]} 42. Be5 {[%clk 0:00:02.3]} 42... Kd5 {[%clk 0:00:09.5]} 43.
Bxf4 {[%clk 0:00:02.6]} 43... Kd4 {[%clk 0:00:08.6]} 44. Kg3 {[%clk 0:00:02.8]}
44... Kd3 {[%clk 0:00:08.8]} 45. Kg2 {[%clk 0:00:03.1]} 45... Ke2 {[%clk
0:00:09.2]} 46. Bg5 {[%clk 0:00:03.5]} 46... Rf1 {[%clk 0:00:08.6]} 47. f4
{[%clk 0:00:03.3]} 47... Rb1 {[%clk 0:00:08.3]} 48. Bf6 {[%clk 0:00:03.5]} 48...
Rb5 {[%clk 0:00:08]} 49. Be5 {[%clk 0:00:03.5]} 49... Rb3 {[%clk 0:00:08]} 50.
Bf6 {[%clk 0:00:03.6]} 50... Rd3 {[%clk 0:00:08.1]} 51. Be5 {[%clk 0:00:03.8]}
51... Ke3 {[%clk 0:00:08.4]} 52. Kg3 {[%clk 0:00:03]} 52... Ke4+ {[%clk
0:00:08.7]} 53. Kg2 {[%clk 0:00:02.2]} 53... Rf3 {[%clk 0:00:06.9]} 54. h4
{[%clk 0:00:01.6]} 54... Rxf4 {[%clk 0:00:07]} 55. Bxf4 {[%clk 0:00:01.8]} 55...
Kxf4 {[%clk 0:00:07.9]} 56. h5 {[%clk 0:00:01.2]} 56... Kg4 {[%clk 0:00:06.9]}
57. hxg6 {[%clk 0:00:01.4]} 57... hxg6 {[%clk 0:00:07.2]} 0-1

[Event "Late-Titled-Tuesday-Blitz-April-30-2024"]
[Site "Chess.com"]
[Date "2024.04.30"]
[Round "8"]
[White "kalinchick"]
[Black "ChessSwole"]
[Result "0-1"]
[WhiteElo "2476"]
[BlackElo "2670"]
[TimeControl "180+1"]
[EndTime "15:29:08 PDT"]
[Termination "ChessSwole won by checkmate"]

1. Nf3 {[%clk 0:03:00.9]} 1... Nf6 {[%clk 0:02:57.9]} 2. g3 {[%clk 0:03:01]}
2... g6 {[%clk 0:02:57.1]} 3. Bg2 {[%clk 0:03:01.5]} 3... Bg7 {[%clk 0:02:58]}
4. O-O {[%clk 0:03:01.8]} 4... O-O {[%clk 0:02:58.7]} 5. d4 {[%clk 0:03:02.2]}
5... d6 {[%clk 0:02:58.6]} 6. c4 {[%clk 0:03:02.4]} 6... Nbd7 {[%clk 0:02:59.2]}
7. Nc3 {[%clk 0:03:02.9]} 7... e5 {[%clk 0:02:59.8]} 8. dxe5 {[%clk 0:03:02.9]}
8... dxe5 {[%clk 0:02:59.9]} 9. Qc2 {[%clk 0:03:03.5]} 9... c6 {[%clk
0:02:59.8]} 10. h3 {[%clk 0:03:00.8]} 10... Qe7 {[%clk 0:02:59.8]} 11. e4 {[%clk
0:03:00]} 11... Nc5 {[%clk 0:02:56.2]} 12. Be3 {[%clk 0:02:59.6]} 12... a5
{[%clk 0:02:48.5]} 13. Rfd1 {[%clk 0:02:58.8]} 13... Nh5 {[%clk 0:02:40.3]} 14.
Rd2 {[%clk 0:02:44.9]} 14... Be6 {[%clk 0:02:36.6]} 15. b3 {[%clk 0:02:44.1]}
15... Rfd8 {[%clk 0:02:23.1]} 16. Rad1 {[%clk 0:02:43.4]} 16... Rxd2 {[%clk
0:02:23.7]} 17. Qxd2 {[%clk 0:02:41.5]} 17... a4 {[%clk 0:02:11.6]} 18. b4
{[%clk 0:02:31]} 18... Na6 {[%clk 0:02:08.3]} 19. b5 {[%clk 0:02:28.4]} 19...
Nc5 {[%clk 0:01:52.4]} 20. Qd6 {[%clk 0:02:07.6]} 20... Bf8 {[%clk 0:01:34.8]}
21. Bxc5 {[%clk 0:02:03]} 21... Qf6 {[%clk 0:01:26.2]} 22. Qxe5 {[%clk
0:01:36.1]} 22... Qxe5 {[%clk 0:01:20.3]} 23. Nxe5 {[%clk 0:01:36.1]} 23... Bxc5
{[%clk 0:01:21.2]} 24. Kf1 {[%clk 0:01:06.3]} 24... f6 {[%clk 0:01:08.2]} 25.
Nd7 {[%clk 0:01:05.3]} 25... Bxc4+ {[%clk 0:01:08.3]} 26. Ke1 {[%clk 0:01:04.9]}
26... Bb4 {[%clk 0:01:08.6]} 27. Kd2 {[%clk 0:00:46.8]} 27... cxb5 {[%clk
0:00:54.4]} 28. Kc2 {[%clk 0:00:44]} 28... Kf7 {[%clk 0:00:38.8]} 29. Nb6 {[%clk
0:00:38.1]} 29... Re8 {[%clk 0:00:38.6]} 30. Nxc4 {[%clk 0:00:34.1]} 30... bxc4
{[%clk 0:00:35.9]} 31. Nxa4 {[%clk 0:00:33.1]} 31... Ra8 {[%clk 0:00:35.1]} 32.
Nb2 {[%clk 0:00:22.7]} 32... Rxa2 {[%clk 0:00:34.8]} 33. Rd7+ {[%clk 0:00:22.7]}
33... Ke6 {[%clk 0:00:31.1]} 34. Rxb7 {[%clk 0:00:22.6]} 34... Bc5 {[%clk
0:00:22.5]} 35. Kc3 {[%clk 0:00:20.2]} 35... Bxf2 {[%clk 0:00:21.8]} 36. Bf3
{[%clk 0:00:16.1]} 36... Nxg3 {[%clk 0:00:20.9]} 37. Nxc4 {[%clk 0:00:15.5]}
37... h5 {[%clk 0:00:20]} 38. Rg7 {[%clk 0:00:12.4]} 38... g5 {[%clk 0:00:19.6]}
39. Rh7 {[%clk 0:00:11.1]} 39... Ra7 {[%clk 0:00:14.3]} 40. Rxa7 {[%clk
0:00:10.4]} 40... Bxa7 {[%clk 0:00:15.2]} 41. Kd3 {[%clk 0:00:08.2]} 41... Bb8
{[%clk 0:00:12.1]} 42. Nd2 {[%clk 0:00:08.1]} 42... Bf4 {[%clk 0:00:12.3]} 43.
Nc4 {[%clk 0:00:08.2]} 43... h4 {[%clk 0:00:11.3]} 44. Nb6 {[%clk 0:00:07.7]}
44... Be5 {[%clk 0:00:10.9]} 45. Nd5 {[%clk 0:00:08.1]} 45... Kd6 {[%clk
0:00:10.8]} 46. Ne3 {[%clk 0:00:08.7]} 46... Bf4 {[%clk 0:00:09.4]} 47. Ng4
{[%clk 0:00:08.9]} 47... Ke6 {[%clk 0:00:09.4]} 48. Ne3 {[%clk 0:00:08.9]} 48...
Bd6 {[%clk 0:00:09.4]} 49. Ng4 {[%clk 0:00:08.9]} 49... Nh5 {[%clk 0:00:09.5]}
50. Ne3 {[%clk 0:00:08.1]} 50... Nf4+ {[%clk 0:00:10.2]} 51. Kd2 {[%clk
0:00:06.9]} 51... Kf7 {[%clk 0:00:10]} 52. Bg4 {[%clk 0:00:06.9]} 52... Bc5
{[%clk 0:00:09.7]} 53. Nf5 {[%clk 0:00:07.5]} 53... Ke6 {[%clk 0:00:09.1]} 54.
Kc3 {[%clk 0:00:08.1]} 54... Ke5 {[%clk 0:00:09.6]} 55. Ng3 {[%clk 0:00:07.2]}
55... hxg3 {[%clk 0:00:09.5]} 56. Bf3 {[%clk 0:00:06.7]} 56... g2 {[%clk
0:00:09.7]} 57. Bxg2 {[%clk 0:00:04.2]} 57... Nxg2 {[%clk 0:00:10.6]} 58. Kd3
{[%clk 0:00:04.6]} 58... Nf4+ {[%clk 0:00:10.7]} 59. Kc4 {[%clk 0:00:04.6]}
59... Nxh3 {[%clk 0:00:11.6]} 60. Kxc5 {[%clk 0:00:05.3]} 60... Kxe4 {[%clk
0:00:12.1]} 61. Kd6 {[%clk 0:00:05.9]} 61... f5 {[%clk 0:00:12.7]} 62. Ke6
{[%clk 0:00:06.8]} 62... f4 {[%clk 0:00:13.3]} 63. Kf7 {[%clk 0:00:07.7]} 63...
f3 {[%clk 0:00:14]} 64. Kg6 {[%clk 0:00:08.6]} 64... f2 {[%clk 0:00:14.9]} 65.
Kh5 {[%clk 0:00:09.4]} 65... f1=Q {[%clk 0:00:15.5]} 66. Kg4 {[%clk 0:00:10.3]}
66... Qg2+ {[%clk 0:00:15.4]} 67. Kh5 {[%clk 0:00:10.7]} 67... g4 {[%clk
0:00:14.9]} 68. Kh4 {[%clk 0:00:11.6]} 68... g3 {[%clk 0:00:13]} 69. Kh5 {[%clk
0:00:12.5]} 69... Kf4 {[%clk 0:00:13.1]} 70. Kh4 {[%clk 0:00:13.4]} 70... Qc6
{[%clk 0:00:09.3]} 71. Kh5 {[%clk 0:00:14.3]} 71... Qb6 {[%clk 0:00:08.2]} 72.
Kh4 {[%clk 0:00:14.7]} 72... Qh6# {[%clk 0:00:09.1]} 0-1